bitfinex/quotes_ETHUSD_20250814
["timestamp","ask_amount","ask_price","bid_price","bid_amount"]
[1755183830403,1e-08,4663.4,4663.3,3.1657396]
[1755183830859,1e-08,4663.4,4663.3,2.6792396]
[1755183832569,1e-08,4663.4,4663.3,3.7012396]
[1755183832766,0.002,4663.8,4663.7,2.14422025]
[1755183832767,1e-08,4663.8,4663.7,2.14422025]
[1755183833059,0.00120001,4663.9,4663.8,2.14417427]
[1755183833952,0.00120001,4663.9,4663.8,2.14497427]
[1755183834332,0.00120001,4663.9,4663.8,2.60997427]
[1755183835640,0.00120001,4663.9,4663.8,2.14497427]
[1755183836006,0.10840001,4663.9,4663.8,5.53297427]
[1755183836204,0.57510001,4663.9,4663.8,2.14497427]
[1755183836403,0.57510001,4663.9,4663.8,0.0008]
[1755183836404,1.58870001,4663.9,4663.8,0.0008]
[1755183836654,1.74777001,4663.9,4663.8,0.0008]
[1755183837022,0.55,4663.5,4662.5,0.001]
[1755183837204,0.1072,4662.6,4662.5,2.14577178]
[1755183837405,1.0375,4662.6,4662.5,0.001]
[1755183837618,1.0375,4662.6,4662.5,2.14577211]
[1755183837816,0.5739,4662.6,4662.5,2.14577211]
[1755183838017,0.1072,4662.6,4662.5,2.14577211]
[1755183838239,0.5739,4662.6,4662.5,2.14577211]
[1755183838608,0.1072,4662.6,4662.5,2.14577211]
[1755183840574,1.5875,4662.6,4662.5,0.001]
[1755183840773,4.10543551,4662.6,4662.5,0.001]
[1755183840930,3.73222611,4662.6,4662.5,0.001]
[1755183841138,2.69495613,4662.1,4662.0,0.001]
[1755183841356,3.73245613,4662.1,4662.0,0.001]
[1755183842485,6.73245613,4662.1,4662.0,0.001]
[1755183843876,36.73245613,4662.1,4662.0,1e-08]
[1755183844077,37.59282133,4662.1,4662.0,1e-08]
[1755183844239,6.9323763,4662.1,4662.0,1e-08]
[1755183844438,10.31615159,4662.1,4662.0,1e-08]
[1755183844697,10.31615044,4662.1,4662.0,1e-08]
[1755183844975,10.11645613,4662.1,4662.0,1e-08]
[1755183845393,6.73245613,4662.1,4662.0,1e-08]
[1755183845558,10.11645613,4662.1,4662.0,1e-08]
[1755183845985,40.31602441,4662.1,4662.0,1e-08]
[1755183846200,40.11645613,4662.1,4662.0,1e-08]
[1755183846344,40.31588154,4662.1,4662.0,1e-08]
[1755183847191,10.31588154,4662.1,4662.0,1e-08]
[1755183847540,40.31588154,4662.1,4662.0,1e-08]
[1755183847949,40.11645613,4662.1,4662.0,1e-08]
[1755183848552,9.56845613,4662.1,4662.0,1e-08]
[1755183848755,4.29999999,4661.8,4661.6,0.001]
[1755183849080,5.23029999,4661.7,4661.6,0.001]
[1755183849278,4.40719999,4661.7,4661.6,0.001]
[1755183849582,4.40719999,4661.7,4661.6,2.1461862]
[1755183849755,0.1072,4661.7,4661.6,3.27570482]
[1755183850075,3.387,4663.2,4662.3,2.1448223]
[1755183850287,0.1072,4661.9,4661.7,2.14514018]
[1755183850447,0.1072,4661.9,4661.8,2.14509416]
[1755183851305,0.1072,4661.9,4661.6,0.001]
[1755183851576,0.55,4661.8,4661.6,0.001]
[1755183851773,0.55,4661.8,4661.6,2.14618331]
[1755183851961,0.55,4661.8,4661.6,0.001]
[1755183852343,1.0167,4661.7,4661.6,0.001]
[1755183852547,1.3899537,4661.7,4661.6,0.001]
[1755183852950,1.3899537,4661.7,4661.6,0.0018]
[1755183852951,4.8535537,4661.7,4661.6,0.0018]
[1755183853389,4.3899537,4661.7,4661.6,0.0018]
[1755183853885,8.2405537,4661.7,4661.6,0.0018]
[1755183854066,10.38569388,4661.7,4661.6,0.0018]
[1755183855086,6.99789388,4661.7,4661.6,0.0018]
[1755183855289,4.8527537,4661.7,4661.6,0.0018]
[1755183855477,4.8527537,4661.7,4661.1,0.001]
[1755183855478,4.84719999,4661.2,4661.1,0.001]
[1755183855651,4.95439999,4661.2,4661.1,2.61141631]
[1755183855857,4.40439999,4661.2,4661.1,2.61141631]
[1755183856179,4.40439999,4661.2,4661.1,2.14641631]
[1755183856494,4.95439999,4661.2,4661.1,0.001]
[1755183856795,3.0,4662.1,4661.1,0.9158]
[1755183857107,0.6387,4662.0,4661.1,2.14640678]
[1755183857260,0.6387,4662.0,4661.2,2.14536731]
[1755183857456,3.4667,4663.0,4661.2,0.465]
[1755183857685,3.0,4662.8,4661.2,0.465]
[1755183857998,3.0,4662.8,4661.1,0.001]
[1755183857999,2.69481811,4662.4,4661.1,0.001]
[1755183858208,0.55,4661.8,4661.1,0.001]
[1755183858415,3.55,4661.6,4661.1,0.001]
[1755183858552,0.55,4661.4,4661.1,0.001]
[1755183859095,0.55,4661.5,4661.1,0.001]
[1755183859460,0.55,4661.3,4661.1,0.001]
[1755183859658,7.4047,4661.2,4661.1,0.001]
[1755183860516,10.01367029,4661.2,4661.1,0.001]
[1755183861019,10.00937996,4661.2,4661.1,0.001]
[1755183861334,0.55,4659.4,4656.9,2.14730618]
[1755183861593,0.55,4659.4,4654.7,5.145]
[1755183861594,3.55,4659.2,4657.6,0.4642]
[1755183861751,3.55,4659.0,4657.6,0.4642]
[1755183861959,0.55,4658.8,4658.7,2.14652156]
[1755183862264,0.55,4659.1,4658.7,0.4642]
[1755183862468,0.55,4659.1,4659.0,2.14638334]
[1755183862895,0.55,4659.2,4659.1,2.14633075]
[1755183863262,0.55,4659.2,4659.1,0.4642]
[1755183863495,0.55,4659.2,4659.1,2.61053727]
[1755183863695,0.55,4659.7,4659.1,0.4642]
[1755183863856,0.55,4659.5,4658.5,0.4642]
[1755183864056,0.55,4659.3,4658.5,0.9118]
[1755183864674,0.55,4659.3,4659.0,2.14637734]
[1755183864868,0.55,4659.3,4659.0,2.14633878]
[1755183865304,0.4674,4660.9,4658.8,0.02146475]
[1755183865603,0.55,4660.5,4659.1,0.9118]
[1755183865896,3.388,4660.6,4659.2,3.07955411]
[1755183866108,2.14532452,4661.3,4660.2,2.14579376]
[1755183866109,3.389,4660.8,4660.2,2.14579376]
[1755183866317,2.61260215,4661.6,4655.5,1.04839075]
[1755183866318,0.4674,4661.6,4655.5,1.04839075]
[1755183866547,3.389,4661.3,4660.9,2.14548038]
[1755183866844,0.3389,4661.3,4660.1,0.4476]
[1755183867013,3.389,4661.6,4660.2,0.4642]
[1755183867200,3.0,4661.4,4659.6,0.1072]
[1755183867397,0.1072,4660.2,4660.1,2.14587669]
[1755183867623,0.1072,4660.2,4660.0,2.14587782]
[1755183867838,0.55,4660.7,4660.1,2.14583545]
[1755183868000,0.1072,4659.7,4659.6,2.61030696]
[1755183868200,0.1072,4660.2,4659.6,0.9118]
[1755183868400,0.1072,4660.2,4660.1,2.14587669]
[1755183868636,0.1072,4660.2,4660.1,3.05767669]
[1755183868811,0.1072,4660.2,4660.1,2.14587669]
[1755183869517,0.55,4660.1,4660.0,2.14590479]
[1755183869724,0.55,4660.1,4659.7,2.14605491]
[1755183869930,0.1072,4659.7,4658.9,0.4642]
[1755183870111,0.55,4660.1,4659.7,2.14605277]
[1755183870310,0.1072,4659.2,4658.9,0.77003037]
[1755183870599,0.1072,4659.0,4658.9,2.14642941]
[1755183871003,0.6572,4659.0,4658.9,2.14642941]
[1755183871222,0.6572,4659.0,4658.8,2.14646824]
[1755183871449,0.6572,4659.0,4658.4,0.4642]
[1755183871450,4.95439999,4659.0,4658.9,2.14642941]
[1755183871649,4.84719999,4659.0,4658.9,2.14642941]
[1755183871851,4.95439999,4659.0,4658.9,2.14642941]
[1755183872451,2.69643218,4658.9,4656.3,0.4642]
[1755183872651,3.55,4658.7,4656.4,0.4642]
[1755183872825,0.55,4658.5,4656.5,0.4476]
[1755183873025,0.55,4658.3,4656.6,2.14748958]
[1755183873352,0.55,4658.3,4657.5,2.14706886]
[1755183873945,0.55,4658.3,4656.5,0.4476]
[1755183874148,0.55,4658.1,4656.9,2.6115123]
[1755183874350,0.55,4658.1,4658.0,2.14684413]
[1755183874526,3.398,4658.8,4656.2,2.14766431]
[1755183874527,0.55,4658.6,4657.5,0.4476]
[1755183874725,0.55,4658.6,4658.0,2.14680058]
[1755183874962,0.55,4658.6,4658.1,2.1467974]
[1755183875125,0.55,4658.6,4658.1,2.14677188]
[1755183875325,1.0265,4658.6,4657.0,2.14730513]
[1755183875520,1.0265,4658.6,4654.6,2.14838193]
[1755183875521,0.55,4658.2,4656.0,0.4642]
[1755183875734,0.55,4657.6,4656.0,0.4642]
[1755183875933,3.55,4657.6,4656.0,0.4642]
[1755183876261,0.55,4657.5,4656.0,0.4642]
[1755183876419,3.953,4657.5,4656.0,0.4642]
[1755183876625,0.55,4657.3,4656.0,0.4642]
[1755183876882,0.36142912,4657.2,4657.0,2.1472893]
[1755183877025,0.55,4657.5,4656.2,0.4476]
[1755183877227,0.55,4657.5,4656.5,2.6116951]
[1755183877584,4.29719999,4657.4,4656.5,0.4642]
[1755183877728,0.55,4657.3,4656.5,0.4642]
[1755183877927,0.55,4657.3,4657.1,2.14725191]
[1755183878259,0.55,4657.3,4657.2,2.14721291]
[1755183878827,0.55,4657.6,4657.5,2.14707461]
[1755183879056,7.06,4657.7,4657.6,2.14702851]
[1755183879266,10.06,4657.9,4657.4,2.14707497]
[1755183879625,0.55,4657.8,4657.4,2.14707497]
[1755183880272,0.55,4657.8,4657.3,2.14715464]
[1755183880774,0.55,4657.8,4657.4,2.14710548]
[1755183881281,0.4674,4657.7,4657.1,2.14725771]
[1755183881503,0.4674,4657.7,4657.1,2.14724887]
[1755183881657,10.06,4657.9,4657.3,2.14715923]
[1755183881847,0.55,4657.8,4657.2,2.14720396]
[1755183882254,0.55,4657.8,4657.3,2.14716388]
[1755183882503,0.4674,4657.7,4657.1,2.14724865]
[1755183882701,0.1072,4656.6,4656.5,2.1475357]
[1755183883001,0.1064,4656.6,4656.5,2.1475357]
[1755183883148,0.1064,4656.6,4656.5,3.0593357]
[1755183883464,0.1064,4656.6,4656.5,3.58003206]
[1755183883665,0.1064,4656.6,4656.5,3.0593357]
[1755183884073,0.55,4657.8,4657.7,2.14698241]
[1755183884490,0.55,4657.8,4656.6,3.397]
[1755183884491,4.3,4658.1,4657.8,2.14693632]
[1755183884688,4.3,4658.1,4658.0,2.14684413]
[1755183884981,4.3,4658.1,4657.9,0.4642]
[1755183884982,3.0,4658.9,4658.4,2.14662026]
[1755183885194,0.55,4658.8,4657.9,2.61104812]
[1755183885351,3.4674,4658.9,4657.9,2.14684812]
[1755183885552,0.1072,4658.0,4657.9,2.14684812]
[1755183885784,0.1072,4658.0,4657.9,3.05864812]
[1755183886086,0.1072,4658.0,4657.9,2.61104812]
[1755183886392,0.1072,4658.0,4657.9,2.14684812]
[1755183886910,0.1072,4658.0,4657.3,2.59475903]
[1755183886911,0.55,4657.9,4656.6,0.1072]
[1755183887057,0.1072,4658.0,4657.9,2.14689022]
[1755183887251,3.948,4658.4,4657.2,0.4642]
[1755183887456,3.948,4658.4,4656.7,0.39694]
[1755183887457,0.1072,4657.3,4656.8,2.14739735]
[1755183887756,0.55,4658.0,4657.1,2.14723016]
[1755183887980,2.69684883,4658.0,4656.5,0.4642]
[1755183888150,0.55,4657.5,4656.8,2.14735417]
[1755183888355,0.1072,4656.6,4656.5,0.4642]
[1755183888553,0.1072,4656.6,4656.5,2.1475357]
[1755183889092,0.1072,4656.6,4656.0,0.1072]
[1755183889277,0.1072,4656.1,4655.8,2.14782443]
[1755183889479,0.55,4656.8,4655.6,5.54494988]
[1755183889677,0.55,4656.8,4655.7,2.14790471]
[1755183889892,0.1072,4655.8,4655.7,2.14790471]
[1755183890393,0.1072,4655.8,4655.7,2.61210471]
[1755183890690,0.1072,4655.8,4655.5,0.001]
[1755183890892,0.1072,4655.8,4655.7,2.14790471]
[1755183892758,0.1072,4655.8,4655.5,0.001]
[1755183892965,0.978,4655.7,4655.5,0.001]
[1755183893159,1.446,4655.6,4655.5,0.001]
[1755183893485,6.59395085,4655.6,4655.5,0.001]
[1755183893885,7.844,4655.6,4655.5,0.001]
[1755183894193,3.978,4655.6,4655.5,0.001]
[1755183894384,4.5532,4655.6,4655.5,0.001]
[1755183894584,4.99652971,4655.6,4655.5,0.001]
[1755183894788,8.39452971,4655.6,4655.5,0.001]
[1755183895166,4.99652971,4655.6,4655.5,0.001]
[1755183895593,3.6572,4655.6,4655.5,0.001]
[1755183895795,7.4822,4655.6,4655.5,0.001]
[1755183895976,7.9502,4655.6,4655.5,0.001]
[1755183896178,4.5532,4655.6,4655.5,0.001]
[1755183896375,7.9502,4655.6,4655.5,0.001]
[1755183896688,4.0852,4655.6,4655.5,0.001]
[1755183896889,7.4842,4655.6,4655.5,0.001]
[1755183897064,7.9522,4655.6,4655.5,0.001]
[1755183897591,7.4842,4655.6,4655.5,0.001]
[1755183898201,3.6572,4655.6,4655.5,0.001]
[1755183898417,8.31892,4655.6,4655.0,0.001]
[1755183898602,0.55,4655.5,4654.9,2.14823649]
[1755183898902,0.1072,4654.2,4654.1,2.14964313]
[1755183899196,0.55,4655.5,4654.6,2.14841207]
[1755183899197,0.6572,4654.7,4654.6,2.14841207]
[1755183899364,0.55,4654.7,4654.6,2.14841207]
[1755183899565,0.6572,4654.7,4654.6,2.14841207]
[1755183900098,0.1072,4654.7,4654.6,2.64191207]
[1755183900272,3.402,4656.1,4656.0,2.14776632]
[1755183900476,0.428,4656.6,4656.0,2.14776632]
[1755183900477,3.402,4656.6,4656.3,2.14761872]
[1755183900686,0.1072,4656.1,4656.0,0.0009527]
[1755183901080,3.5352,4656.1,4656.0,0.0009527]
[1755183901400,0.428,4658.1,4656.0,0.4944527]
[1755183901599,0.896,4658.1,4656.0,0.0009527]
[1755183901804,30.0,4658.0,4656.1,2.1476751]
[1755183902004,0.55,4657.8,4656.0,0.0009527]
[1755183902203,0.55,4656.7,4656.0,0.0009527]
[1755183902368,6.426,4656.6,4656.0,0.0009527]
[1755183902569,2.14724439,4657.2,4656.0,0.0009527]
[1755183902570,0.428,4657.6,4657.0,2.14726847]
[1755183902779,0.19986249,4657.9,4656.5,0.4935]
[1755183903067,0.428,4657.8,4656.7,2.14743002]
[1755183903296,3.861,4657.8,4656.5,0.4935]
[1755183903497,0.428,4658.3,4656.6,2.14748958]
[1755183903704,4.302,4658.8,4656.9,2.14735124]
[1755183903705,3.432,4658.5,4656.9,2.14735124]
[1755183903868,2.14848673,4658.8,4657.9,2.14684946]
[1755183904208,3.002,4658.8,4658.1,2.14678739]
[1755183904379,0.002,4658.8,4658.7,2.14652156]
[1755183904582,0.002,4658.8,4658.7,3.10928677]
[1755183904910,0.002,4658.8,4658.7,3.61340958]
[1755183904911,1e-08,4658.8,4658.7,3.61340958]
[1755183905115,0.002,4660.2,4660.1,2.14587669]
[1755183905420,0.002,4660.2,4660.1,2.63937669]
[1755183906528,0.002,4660.2,4660.1,3.08717669]
[1755183906696,0.002,4661.2,4661.1,2.14541631]
[1755183907108,0.002,4661.2,4659.5,2.1461408]
[1755183907415,0.002,4661.2,4660.0,0.4935]
[1755183907570,0.002,4661.2,4660.1,0.4478]
[1755183908068,0.002,4661.2,4659.9,3.441]
[1755183908281,0.002,4661.2,4660.5,2.14564836]
[1755183908494,0.55,4661.0,4660.1,2.14586105]
[1755183908669,0.55,4660.6,4659.6,2.14606522]
[1755183908872,2.6957427,4660.4,4658.9,3.9375]
[1755183909191,0.55,4660.4,4659.1,2.14631215]
[1755183909393,0.55,4660.4,4658.9,3.9375]
[1755183910029,0.55,4660.4,4659.6,2.14609382]
[1755183910187,0.55,4660.2,4658.9,3.9375]
[1755183910398,3.55,4659.6,4658.2,3.441]
[1755183910718,3.55,4659.6,4656.7,2.45631003]
[1755183910719,0.978,4659.5,4658.7,2.14650323]
[1755183910923,3.978,4659.5,4657.7,0.4935]
[1755183911075,0.55,4659.2,4658.4,2.14665755]
[1755183911408,0.1072,4658.2,4657.7,3.441]
[1755183911615,0.1072,4658.2,4657.5,0.1072]
[1755183911815,0.1072,4658.2,4656.9,10.73834029]
[1755183911816,0.55,4658.5,4657.8,2.1468922]
[1755183912033,0.428,4659.5,4657.7,0.4935]
[1755183912183,0.1072,4658.1,4658.0,2.14684413]
[1755183912381,0.55,4658.8,4656.9,9.0845]
[1755183912694,0.1072,4657.9,4657.8,2.14693632]
[1755183912894,0.1072,4657.9,4657.3,2.14716681]
[1755183913123,0.1072,4657.9,4657.2,0.1072]
[1755183913418,3.991,4658.4,4656.9,0.4943]
[1755183913626,0.1072,4657.4,4656.9,0.0008]
[1755183913984,0.1072,4657.4,4657.3,2.14716681]
[1755183914184,0.1072,4657.4,4656.9,0.0008]
[1755183914392,0.1072,4657.4,4656.6,0.1072]
[1755183914599,0.1072,4657.4,4657.3,2.14716681]
[1755183914798,0.1072,4657.4,4656.6,0.38203014]
[1755183915021,0.1072,4657.4,4656.9,2.14733903]
[1755183915348,0.1072,4656.9,4656.3,0.6007]
[1755183915681,2.14721291,4657.2,4655.7,0.4935]
[1755183915885,0.1072,4656.3,4656.2,2.14763226]
[1755183916124,0.1072,4656.3,4656.2,2.14767406]
[1755183916426,0.1072,4656.3,4656.2,2.57737876]
[1755183916636,0.1072,4656.7,4656.2,3.51863587]
[1755183916827,0.1072,4656.7,4656.6,2.14748958]
[1755183917024,0.55,4657.8,4656.3,0.4478]
[1755183917025,0.55,4657.6,4656.3,0.4478]
[1755183917228,2.6969482,4657.8,4656.3,0.4478]
[1755183917229,0.1072,4656.9,4656.3,0.9413]
[1755183917424,0.1072,4656.9,4656.2,2.57733587]
[1755183917425,0.1072,4656.9,4656.4,0.69733019]
[1755183917628,0.428,4656.8,4656.4,0.0015666]
[1755183917832,0.1072,4656.5,4656.4,0.0015666]
[1755183918405,0.1072,4656.5,4656.4,2.14914842]
[1755183919154,0.1072,4656.5,4656.4,0.0015666]
[1755183919506,2.8047357,4656.5,4656.4,0.0015666]
[1755183919713,4.02400927,4656.5,4656.4,0.0015666]
[1755183920031,4.02400927,4656.5,4654.6,0.4478]
[1755183920032,2.14762794,4656.3,4654.3,2.14851837]
[1755183920232,0.1072,4655.3,4654.2,3.437]
[1755183920442,4.446,4656.2,4654.2,3.437]
[1755183920443,0.1072,4654.7,4654.2,3.437]
[1755183920758,0.1072,4654.7,4654.6,2.79289032]
[1755183921054,0.55,4654.6,4654.1,0.1082]
[1755183921353,0.1072,4654.7,4654.1,0.1082]
[1755183921354,0.55,4654.4,4654.1,0.001]
[1755183921645,0.1072,4654.2,4654.1,0.001]
[1755183922249,0.6572,4654.2,4654.1,0.001]
[1755183922416,1.72762,4654.2,4654.1,0.001]
[1755183922611,4.72762,4654.2,4654.1,0.001]
[1755183922930,6.87621696,4654.2,4654.1,0.001]
[1755183923125,6.87621696,4654.2,4654.1,0.0018]
[1755183923728,4.72762,4654.2,4654.1,0.0018]
[1755183923952,0.1072,4654.2,4654.1,0.0018]
[1755183924264,5.0731,4654.2,4654.1,0.0018]
[1755183924466,8.0731,4654.2,4654.1,0.0018]
[1755183924622,4.6191,4654.2,4654.1,0.0018]
[1755183925232,5.28192614,4654.2,4654.1,0.0018]
[1755183925753,7.4305231,4654.2,4654.1,0.0018]
[1755183926111,37.4305231,4654.2,4654.1,0.0018]
[1755183926327,37.4305231,4654.2,4653.2,0.03542084]
[1755183926328,0.55,4653.8,4653.2,0.03542084]
[1755183926625,0.55,4653.5,4653.2,0.03542084]
[1755183926823,0.87327357,4653.5,4653.2,0.03542084]
[1755183927370,0.6572,4653.3,4653.2,0.03542084]
[1755183928569,6.66091252,4653.3,4653.2,0.03542084]
[1755183928927,4.0143,4653.3,4653.2,0.03542084]
[1755183929247,7.019,4653.3,4653.2,0.03542084]
[1755183929447,4.29833,4653.3,4653.2,0.03542084]
[1755183929664,3.55,4653.3,4653.2,0.03542084]
[1755183930524,0.55,4653.3,4653.2,2.18447955]
[1755183930724,3.9343,4653.3,4653.2,0.03542084]
[1755183930925,4.02,4653.3,4653.2,0.03542084]
[1755183931156,0.55,4653.3,4653.2,0.03542084]
[1755183931356,4.018,4653.3,4653.2,0.03542084]
[1755183931527,0.55,4653.3,4653.2,0.03542084]
[1755183931726,0.55,4653.3,4653.2,2.18447955]
[1755183931923,0.4643,4654.4,4653.2,0.03542084]
[1755183932124,3.469,4654.3,4654.1,2.14862898]
[1755183932320,0.4643,4654.9,4653.4,0.4547]
[1755183932565,3.469,4654.8,4654.7,2.14836616]
[1755183932771,3.469,4654.9,4654.3,2.14853431]
[1755183933072,3.469,4654.9,4653.4,2.14894975]
[1755183933073,3.8159,4654.9,4653.3,0.4547]
[1755183933273,0.62237804,4655.5,4653.3,0.9244]
[1755183933475,3.47,4655.4,4653.3,0.9244]
[1755183933629,0.55,4655.1,4653.3,0.9244]
[1755183933829,1.0143,4655.1,4653.3,0.9244]
[1755183934035,0.16006887,4655.5,4653.5,2.14892016]
[1755183934235,0.4643,4655.7,4653.7,2.14882781]
[1755183934545,3.468,4655.8,4654.0,3.0]
[1755183934738,0.4643,4656.2,4654.1,0.94588643]
[1755183934941,3.47,4656.1,4655.9,2.14781168]
[1755183935123,3.47,4656.1,4654.7,0.4547]
[1755183935351,3.817,4656.1,4654.3,0.4547]
[1755183935548,5.149,4656.9,4656.0,2.14776632]
[1755183935763,0.002,4657.9,4655.4,2.14804313]
[1755183935982,0.4643,4657.5,4656.0,2.14772657]
[1755183936263,2.14721291,4657.2,4655.0,0.4547]
[1755183936447,2.14721291,4657.2,4654.6,0.4697]
[1755183936448,2.14754944,4656.5,4655.4,2.14800261]
[1755183936649,0.55,4655.5,4653.4,0.4547]
[1755183936852,3.55,4655.3,4654.5,2.14841294]
[1755183937030,3.55,4655.3,4654.7,2.14834254]
[1755183937383,3.55,4655.3,4653.2,0.03542084]
[1755183937384,0.4643,4655.9,4654.0,2.14868929]
[1755183937546,4.022,4655.8,4655.2,2.14809686]
[1755183937862,4.022,4655.8,4655.1,2.14817128]
[1755183938067,4.022,4655.8,4655.2,2.14813389]
[1755183938232,0.55,4656.1,4654.2,2.14859696]
[1755183938431,0.16365834,4657.5,4654.3,3.7165297]
[1755183938668,0.4643,4657.5,4655.1,2.14813604]
[1755183938837,0.4643,4657.5,4654.4,21.78528319]
[1755183938838,3.475,4657.9,4655.3,3.0]
[1755183939046,0.1072,4656.6,4656.5,2.1475357]
[1755183939578,0.1072,4656.6,4655.0,0.4547]
[1755183939785,0.002,4657.9,4654.7,0.4697]
[1755183939786,0.4643,4657.4,4656.4,2.14754681]
[1755183939933,6.9776,4657.3,4655.1,0.9244]
[1755183940132,0.002,4656.8,4654.9,0.1072]
[1755183940338,0.1072,4655.2,4654.6,0.4547]
[1755183940544,0.55,4656.1,4654.8,2.14832001]
[1755183940765,0.1072,4654.9,4654.4,2.14850464]
[1755183940969,0.1072,4654.9,4654.8,2.14832001]
[1755183941141,0.55,4656.2,4654.8,1.44651101]
[1755183941464,0.1072,4655.2,4654.9,2.14827386]
[1755183941667,0.1072,4655.2,4654.8,0.9244]
[1755183941668,0.002,4656.8,4655.0,0.9244]
[1755183941881,0.002,4656.8,4656.7,2.14744346]
[1755183942269,0.1092,4656.8,4656.7,2.14744346]
[1755183942679,0.1092,4656.8,4655.0,3.0]
[1755183942680,0.1092,4656.8,4655.5,2.14799699]
[1755183942861,0.1072,4655.6,4655.5,0.0008]
[1755183943047,0.1072,4655.6,4655.5,2.14879699]
[1755183943498,0.4663,4656.8,4655.5,2.14879699]
[1755183943499,0.002,4656.8,4655.5,0.49743397]
[1755183943656,0.55,4656.7,4655.5,0.0008]
[1755183943856,0.1072,4655.6,4655.5,2.14879699]
[1755183944053,0.1072,4655.6,4655.5,3.07319699]
[1755183944271,0.1072,4655.6,4655.5,2.14879699]
[1755183945273,0.1072,4655.6,4655.5,3.07319699]
[1755183945462,0.1072,4655.6,4655.5,3.59532434]
[1755183945671,0.1072,4655.6,4655.5,2.67092434]
[1755183946191,0.1072,4655.6,4655.5,2.14879699]
[1755183947403,0.1072,4655.6,4655.5,2.60349699]
[1755183947900,0.1072,4655.6,4655.5,2.14879699]
[1755183948216,0.55,4656.6,4655.6,2.14795085]
[1755183948418,0.55,4656.6,4655.5,0.0008]
[1755183948419,0.55,4656.4,4655.5,0.0008]
[1755183948715,0.1072,4655.6,4655.5,0.0008]
[1755183949114,1.1215,4655.6,4655.5,0.0008]
[1755183949597,0.6572,4655.6,4655.5,0.0008]
[1755183949762,0.1072,4655.6,4654.6,2.14840019]
[1755183949965,0.1072,4655.6,4655.3,2.14807543]
[1755183950191,0.55,4655.8,4655.3,2.14807543]
[1755183950572,0.55,4655.8,4655.2,2.14809636]
[1755183950778,0.55,4655.8,4655.3,2.14807793]
[1755183951108,0.55,4655.8,4655.1,2.14818156]
[1755183951410,0.55,4655.8,4654.3,2.60324994]
[1755183951411,0.1072,4654.8,4654.3,2.14854994]
[1755183951621,0.1072,4654.8,4653.7,0.4797]
[1755183951622,0.6572,4654.8,4653.7,0.4797]
[1755183951909,0.6572,4654.8,4652.9,2.14916719]
[1755183951910,0.55,4654.1,4653.2,2.18447335]
[1755183952062,0.55,4654.1,4654.0,2.14868929]
[1755183952258,0.1072,4653.5,4653.2,0.03542084]
[1755183952504,0.55,4653.4,4653.2,0.03542084]
[1755183953200,0.55,4653.4,4653.2,0.03622084]
[1755183953810,0.1072,4653.5,4653.4,2.14896634]
[1755183954010,0.1072,4653.5,4653.2,0.03622084]
[1755183954709,0.55,4653.8,4653.2,0.03622084]
[1755183954917,0.55,4653.8,4653.5,2.1489165]
[1755183955411,0.55,4653.8,4653.2,0.03622084]
[1755183955412,0.55,4653.5,4653.2,0.03622084]
[1755183955572,0.55,4653.6,4653.3,2.14900564]
[1755183955966,0.6572,4653.4,4653.3,2.14900564]
[1755183956264,0.55,4653.3,4653.2,0.03622084]
[1755183956473,1.4365,4653.3,4653.2,0.03622084]
[1755183956676,4.59087,4653.3,4653.2,0.03622084]
[1755183956880,6.73988252,4653.3,4653.2,0.03622084]
[1755183957894,6.9395,4653.3,4653.2,0.03622084]
[1755183958785,10.4055,4653.3,4653.2,0.03622084]
[1755183959181,6.9395,4653.3,4653.2,0.03622084]
[1755183959395,10.4055,4653.3,4653.2,0.03622084]
[1755183959582,6.9395,4653.3,4653.2,0.03622084]
[1755183959988,10.4045,4653.3,4653.2,0.03622084]
[1755183960529,6.9395,4653.3,4653.2,0.03622084]
[1755183960677,10.4035,4653.3,4653.2,0.03622084]
[1755183961076,6.93935123,4653.3,4653.2,0.03622084]
[1755183961272,5.93915123,4653.3,4653.2,0.03622084]
[1755183961478,9.85335123,4653.3,4653.2,0.03622084]
[1755183961703,10.40335123,4653.3,4653.2,0.03622084]
[1755183962813,5.14901252,4653.3,4653.2,0.03622084]
[1755183963021,0.30650332,4653.3,4653.2,0.03622084]
[1755183963184,0.1072,4653.3,4653.2,0.03622084]
[1755183963385,0.1072,4653.3,4653.2,2.18527955]
[1755183963624,3.5792,4653.3,4653.2,0.03622084]
[1755183963781,7.07243252,4653.3,4653.2,0.03622084]
[1755183963981,10.7218694,4653.3,4653.2,0.03622084]
[1755183965111,7.2498694,4653.3,4653.2,0.03622084]
[1755183965440,10.7198694,4653.3,4653.2,0.03622084]
[1755183967112,10.7178694,4653.3,4653.2,0.03622084]
[1755183967308,4.10065688,4653.3,4653.2,0.03622084]
[1755183967514,6.5752,4653.3,4653.2,0.03622084]
[1755183967731,3.1072,4653.3,4653.2,0.03622084]
[1755183967929,6.5752,4653.3,4653.2,0.03622084]
[1755183968100,3.1072,4653.3,4653.2,0.03622084]
[1755183968310,6.5762,4653.3,4653.2,0.03622084]
[1755183968610,0.1072,4653.3,4653.2,0.03622084]
[1755183968800,0.1072,4653.3,4653.2,2.18527955]
[1755183968997,3.5752,4653.3,4653.2,2.66497955]
[1755183969198,0.1072,4653.3,4653.2,2.66497955]
[1755183969435,3.5752,4653.3,4653.2,2.66497955]
[1755183969739,4.1242,4653.3,4653.2,2.18527955]
[1755183969937,4.1242,4653.3,4653.2,0.03622084]
[1755183970125,4.53662,4653.3,4653.2,0.03622084]
[1755183970327,0.6572,4653.3,4653.2,2.18527955]
[1755183970531,0.1072,4653.3,4653.2,2.63457955]
[1755183970727,0.1072,4653.3,4653.2,3.11427955]